bitfinex/quotes_BTCUSD_20250129
["timestamp","ask_amount","ask_price","bid_price","bid_amount"]
[1738144260377,0.01996571,102500.0,102490.0,0.28086185]
[1738144260590,0.00966688,102500.0,102490.0,0.28086185]
[1738144260800,0.15600788,102500.0,102490.0,0.28086185]
[1738144261494,0.00966688,102500.0,102490.0,0.28086185]
[1738144266752,0.15600788,102500.0,102490.0,0.15876185]
[1738144267176,0.14663983,102500.0,102490.0,0.15876185]
[1738144267614,0.20429736,102500.0,102490.0,0.01240685]
[1738144270882,0.33765489,102500.0,102490.0,0.01240685]
[1738144271304,0.58075481,102500.0,102490.0,0.01240685]
[1738144271720,0.48339805,102500.0,102490.0,0.01140685]
[1738144271929,0.48339805,102500.0,102490.0,0.01040685]
[1738144272144,0.48439805,102500.0,102490.0,0.01040685]
[1738144272627,0.48739805,102500.0,102490.0,0.01040685]
[1738144272800,0.48439805,102500.0,102490.0,0.01040685]
[1738144273228,0.49039805,102500.0,102490.0,0.01040685]
[1738144273667,0.48939805,102500.0,102490.0,0.01040685]
[1738144274051,0.57652082,102500.0,102490.0,0.01040685]
[1738144274529,0.57852082,102500.0,102490.0,0.01040685]
[1738144277633,0.49139805,102500.0,102490.0,0.01040685]
[1738144279737,0.43374052,102500.0,102490.0,0.01040685]
[1738144279957,0.15463983,102500.0,102490.0,0.01040685]
[1738144280298,0.21229736,102500.0,102490.0,0.01040685]
[1738144283564,0.29954395,102500.0,102490.0,0.01040685]
[1738144285309,0.5518014,102500.0,102490.0,0.01040685]
[1738144285523,0.6287014,102500.0,102490.0,0.01040685]
[1738144286662,0.6769014,102500.0,102490.0,0.01040685]
[1738144288093,1.24595893,102500.0,102490.0,0.01040685]
[1738144288841,1.15871234,102500.0,102490.0,0.01040685]
[1738144289032,1.15271234,102500.0,102490.0,0.01040685]
[1738144289440,1.16171234,102500.0,102490.0,0.01040685]
[1738144289646,1.15971234,102500.0,102490.0,0.01040685]
[1738144290059,1.16271234,102500.0,102490.0,0.01040685]
[1738144292893,1.10505481,102500.0,102490.0,0.01040685]
[1738144297658,0.77665481,102500.0,102490.0,0.01040685]
[1738144299119,0.64629805,102500.0,102490.0,0.01040685]
[1738144299330,0.52119805,102500.0,102490.0,0.01040685]
[1738144299549,0.46354052,102500.0,102490.0,0.01040685]
[1738144300178,0.52119805,102500.0,102490.0,0.01040685]
[1738144301028,0.31354052,102500.0,102490.0,0.01040685]
[1738144301382,0.21629736,102500.0,102490.0,0.01040685]
[1738144301592,0.30338546,102500.0,102490.0,0.01040685]
[1738144302767,0.24572793,102500.0,102490.0,0.01040685]
[1738144304541,0.15863983,102500.0,102490.0,0.01040685]
[1738144305743,0.15863983,102500.0,102490.0,0.15676185]
[1738144305958,0.02166688,102500.0,102490.0,0.23236185]
[1738144306211,0.16800788,102500.0,102490.0,0.23236185]
[1738144307057,0.16500788,102500.0,102490.0,0.23236185]
[1738144307288,0.15700788,102500.0,102490.0,0.23236185]
[1738144307500,0.16300788,102500.0,102490.0,0.23236185]
[1738144307929,0.24146666,102500.0,102490.0,0.08600685]
[1738144308281,0.24146666,102500.0,102490.0,0.01040685]
[1738144308997,0.24146666,102500.0,102490.0,0.15676185]
[1738144309223,0.15363983,102500.0,102490.0,0.15676185]
[1738144309400,0.15363983,102500.0,102490.0,0.01040685]
[1738144310157,0.15363983,102500.0,102490.0,0.15676185]
[1738144311170,0.15363983,102500.0,102490.0,0.01040685]
[1738144311792,0.24146666,102500.0,102490.0,0.01040685]
[1738144313327,0.33870982,102500.0,102490.0,0.01040685]
[1738144313525,0.36117078,102500.0,102490.0,0.01040685]
[1738144313926,0.33870982,102500.0,102490.0,0.01040685]
[1738144315214,0.42579792,102500.0,102490.0,0.01040685]
[1738144319117,0.43558485,102500.0,102490.0,0.01040685]
[1738144320160,0.43558485,102500.0,102490.0,0.0108395]
[1738144321697,0.51248485,102500.0,102490.0,0.0108395]
[1738144322238,0.60984161,102500.0,102490.0,0.0108395]
[1738144322471,0.62939593,102500.0,102490.0,0.0108395]
[1738144322671,1.03589593,102500.0,102490.0,0.0108395]
[1738144322873,1.18589593,102500.0,102490.0,0.0108395]
[1738144324592,1.09880783,102500.0,102490.0,0.0108395]
[1738144327356,0.77040783,102500.0,102490.0,0.0108395]
[1738144332636,0.77040783,102500.0,102470.0,0.0001422]
[1738144332637,0.39752366,102480.0,102470.0,0.0001422]
[1738144332863,0.59017489,102480.0,102470.0,0.00023673]
[1738144335608,0.91957489,102480.0,102470.0,0.00023673]
[1738144335965,0.92457489,102480.0,102470.0,0.00149192]
[1738144336784,0.91759646,102480.0,102470.0,0.00149192]
[1738144336987,0.82218839,102480.0,102470.0,0.00149192]
[1738144337217,0.73436156,102480.0,102470.0,0.00149192]
[1738144338175,0.82218839,102480.0,102470.0,0.00149192]
[1738144339174,0.73436156,102480.0,102470.0,0.00149192]
[1738144339388,0.74406491,102480.0,102470.0,0.00149192]
[1738144340075,0.84142167,102480.0,102470.0,0.00942718]
[1738144340289,0.9292485,102480.0,102470.0,0.00942718]
[1738144341355,0.92954733,102480.0,102470.0,0.00942718]
[1738144341784,0.83219057,102480.0,102470.0,0.00942718]
[1738144341993,0.66886374,102480.0,102470.0,0.00942718]
[1738144343700,0.68887072,102480.0,102470.0,0.00942718]
[1738144344290,0.77589513,102480.0,102470.0,0.00942718]
[1738144350606,0.80341618,102480.0,102470.0,0.00942718]
[1738144350805,0.90077294,102480.0,102470.0,0.00942718]
[1738144351209,0.95844688,102480.0,102470.0,0.00942718]
[1738144351479,1.19634688,102480.0,102470.0,0.00942718]
[1738144352780,1.24584688,102480.0,102470.0,0.00942718]
[1738144353028,1.28884688,102480.0,102470.0,0.00942718]
[1738144353449,0.49143188,102470.0,102460.0,0.0001423]
[1738144353659,0.6860318,102470.0,102460.0,0.00019076]
[1738144354622,0.99701258,102470.0,102460.0,0.00019076]
[1738144355225,1.00401258,102470.0,102460.0,0.00019076]
[1738144358858,1.00301258,102470.0,102460.0,0.00019076]
[1738144359011,0.99701258,102470.0,102460.0,0.00019076]
[1738144359213,0.89965582,102470.0,102460.0,0.00019076]
[1738144359398,0.90865582,102470.0,102460.0,0.00019076]
[1738144360017,0.58025582,102470.0,102460.0,0.00019076]
[1738144360221,0.58325582,102470.0,102460.0,0.00019076]
[1738144360848,0.58025582,102470.0,102460.0,0.00019076]
[1738144361054,0.67061258,102470.0,102460.0,0.00709342]
[1738144362800,0.49255582,102470.0,102460.0,0.00709342]
[1738144364116,0.49255582,102470.0,102460.0,0.00805386]
[1738144367588,0.49255582,102470.0,102460.0,0.0090143]
[1738144376090,0.49285465,102470.0,102460.0,0.0090143]
[1738144376327,0.59021141,102470.0,102460.0,0.0090143]
[1738144376855,0.55997202,102470.0,102460.0,0.0090143]
[1738144377025,0.46261526,102470.0,102460.0,0.0090143]
[1738144380521,0.31261526,102470.0,102460.0,0.0090143]
[1738144380779,0.31261526,102470.0,102460.0,0.0902143]
[1738144383272,0.31261526,102470.0,102460.0,0.0090143]
[1738144384233,0.70996129,102470.0,102460.0,0.0090143]
[1738144386761,0.69996129,102470.0,102460.0,0.0090143]
[1738144387682,0.70996129,102470.0,102460.0,0.0090143]
[1738144389804,1.03836129,102470.0,102460.0,0.0090143]
[1738144397028,1.06106507,102470.0,102460.0,0.0090143]
[1738144397472,1.12946507,102470.0,102460.0,0.0090143]
[1738144401584,0.80106507,102470.0,102460.0,0.0090143]
[1738144401783,0.25462977,102470.0,102460.0,0.1376143]
[1738144402031,0.15738661,102470.0,102460.0,0.1376143]
[1738144402214,0.01129883,102470.0,102460.0,0.2840123]
[1738144402620,0.01129883,102470.0,102460.0,0.1376143]
[1738144402780,0.15768283,102470.0,102460.0,0.1376143]
[1738144402976,0.01129883,102470.0,102460.0,0.1376143]
[1738144403184,0.00929883,102470.0,102460.0,0.1376143]
[1738144403398,0.01129883,102470.0,102460.0,0.1376143]
[1738144403586,0.00229883,102470.0,102460.0,0.1376143]
[1738144404002,0.00929883,102470.0,102460.0,0.1376143]
[1738144404203,0.00129883,102470.0,102460.0,0.1376143]
[1738144404608,0.00729883,102470.0,102460.0,0.1376143]
[1738144404811,0.09472009,102470.0,102460.0,0.1376143]
[1738144405017,0.09472009,102470.0,102460.0,0.2840123]
[1738144405418,0.10501892,102470.0,102460.0,0.2840123]
[1738144406967,0.09472009,102470.0,102460.0,0.2840123]
[1738144407779,0.00729883,102470.0,102460.0,0.2840123]
[1738144409589,0.01759766,102470.0,102460.0,0.2840123]
[1738144409792,0.00729883,102470.0,102460.0,0.2840123]
[1738144409999,0.01759766,102470.0,102460.0,0.2840123]
[1738144412162,0.03577538,102470.0,102460.0,0.2840123]
[1738144415312,0.01759766,102470.0,102460.0,0.2840123]
[1738144417699,0.03575496,102470.0,102460.0,0.2840123]
[1738144418971,0.01759766,102470.0,102460.0,0.2840123]
[1738144426395,0.00729883,102470.0,102460.0,0.2840123]
[1738144427318,0.01759766,102470.0,102460.0,0.2840123]
[1738144431943,0.00729883,102470.0,102460.0,0.2840123]
[1738144432349,0.01759766,102470.0,102460.0,0.2840123]
[1738144435414,0.00729883,102470.0,102460.0,0.2840123]
[1738144435549,0.01759766,102470.0,102460.0,0.2840123]
[1738144435956,0.01759766,102470.0,102460.0,0.27550975]
[1738144436193,0.00729883,102470.0,102460.0,0.27610811]
[1738144436393,0.00729883,102470.0,102460.0,0.30660915]
[1738144436848,0.01759766,102470.0,102460.0,0.30660915]
[1738144440565,0.16398166,102470.0,102460.0,0.30660915]
[1738144440979,0.01759766,102470.0,102460.0,0.30660915]
[1738144442745,0.01759766,102470.0,102460.0,0.3056923]
[1738144446057,0.01759766,102470.0,102460.0,0.3058346]
[1738144446265,0.16398166,102470.0,102460.0,0.18580382]
[1738144446790,0.01759766,102470.0,102460.0,0.18580382]
[1738144447845,0.16398166,102470.0,102460.0,0.03940582]
[1738144448094,0.21133335,102470.0,102460.0,0.00890478]
[1738144448293,0.29213335,102470.0,102460.0,0.00890478]
[1738144448680,0.23448283,102470.0,102460.0,0.00890478]
[1738144450816,0.32190409,102470.0,102460.0,0.00890478]
[1738144451601,0.24110409,102470.0,102460.0,0.00890478]
[1738144456802,0.24086422,102470.0,102460.0,0.00890478]
[1738144462476,0.24086422,102470.0,102460.0,0.00879889]
[1738144463880,0.29851474,102470.0,102460.0,0.00879889]
[1738144464084,0.24086422,102470.0,102460.0,0.00879889]
[1738144471435,0.09448022,102470.0,102460.0,0.15519689]
[1738144472047,0.24086422,102470.0,102460.0,0.15519689]
[1738144472585,0.09448022,102470.0,102460.0,0.15519689]
[1738144474023,0.00705896,102470.0,102460.0,0.15519689]
[1738144476731,0.01735779,102470.0,102460.0,0.15519689]
[1738144476971,0.00705896,102470.0,102460.0,0.15519689]
[1738144482761,0.02672584,102470.0,102460.0,0.21284741]
[1738144482973,0.02672584,102470.0,102460.0,0.32193082]
[1738144483177,0.02672584,102470.0,102460.0,0.29144741]
[1738144483600,0.02672584,102470.0,102460.0,0.32192677]
[1738144484253,0.02672584,102470.0,102460.0,0.26427625]
[1738144484426,0.02672584,102470.0,102460.0,0.32192677]
[1738144486886,0.02195586,102470.0,102460.0,0.32192677]
[1738144493412,0.02195586,102470.0,102460.0,0.29144741]
[1738144494350,0.02225469,102470.0,102460.0,0.29144741]
[1738144496288,0.02225469,102470.0,102460.0,0.32191051]
[1738144496485,0.02225469,102470.0,102460.0,0.29144741]
[1738144497346,0.02225469,102470.0,102460.0,0.32191188]
[1738144498369,0.02225469,102470.0,102460.0,0.29144741]
[1738144498799,0.02225469,102470.0,102460.0,0.32191339]
[1738144498970,0.01996571,102470.0,102460.0,0.32191339]
[1738144499180,0.02496571,102470.0,102460.0,0.32191339]
[1738144499402,0.02496571,102470.0,102460.0,0.29144741]
[1738144499605,0.02596571,102470.0,102460.0,0.29144741]
[1738144499782,0.02596571,102470.0,102460.0,0.32191551]
[1738144500229,0.02496571,102470.0,102460.0,0.32191551]
[1738144500564,0.02496571,102470.0,102460.0,0.29144741]
[1738144500813,0.02496571,102470.0,102460.0,0.32191751]
[1738144501013,0.01996571,102470.0,102460.0,0.29144741]
[1738144501183,0.01996571,102470.0,102460.0,0.32192001]
[1738144501410,0.02196571,102470.0,102460.0,0.32192001]
[1738144502873,0.02196571,102470.0,102460.0,0.18566949]
[1738144504667,0.01259766,102470.0,102460.0,0.18566949]
[1738144504873,0.15898166,102470.0,102460.0,0.18566949]
[1738144505068,0.02196571,102470.0,102460.0,0.18566949]
[1738144507426,0.16834971,102470.0,102460.0,0.18566949]
[1738144507631,0.02196571,102470.0,102460.0,0.18566949]
[1738144516936,0.01916553,102470.0,102460.0,0.18566949]
[1738144517616,0.01946436,102470.0,102460.0,0.18566949]
[1738144520799,0.16584836,102470.0,102460.0,0.18566949]
[1738144520999,0.24794836,102470.0,102460.0,0.18566949]
[1738144521813,0.24794836,102470.0,102460.0,0.03927149]
[1738144521997,0.23908166,102470.0,102460.0,0.03927149]
[1738144522206,0.29673218,102470.0,102460.0,0.00879889]
[1738144522412,0.34263218,102470.0,102460.0,0.00879889]
[1738144522589,0.27468283,102470.0,102460.0,0.00879889]
[1738144524321,0.36210409,102470.0,102460.0,0.00879889]
[1738144528687,0.41975461,102470.0,102460.0,0.00879889]
[1738144529240,0.51699777,102470.0,102460.0,0.00879889]
[1738144533714,0.53658921,102470.0,102460.0,0.00879889]
[1738144538141,0.51699777,102470.0,102460.0,0.00879889]
[1738144550950,0.67200505,102470.0,102460.0,0.00879889]
[1738144551154,0.84500505,102470.0,102460.0,0.00879889]
[1738144551358,0.85500505,102470.0,102460.0,0.00879889]
[1738144552918,0.85500505,102470.0,102460.0,0.00979889]
[1738144553125,0.77558379,102470.0,102460.0,0.00979889]
[1738144553364,0.77758379,102470.0,102460.0,0.00979889]
[1738144553759,0.77558379,102470.0,102460.0,0.00979889]
[1738144554182,0.77758379,102470.0,102460.0,0.00979889]
[1738144554646,0.71993327,102470.0,102460.0,0.00979889]
[1738144555055,0.61257651,102470.0,102460.0,0.00979889]
[1738144560467,0.67022703,102470.0,102460.0,0.00979889]
[1738144561266,0.61257651,102470.0,102460.0,0.00979889]
[1738144567272,0.729698,102460.0,102450.0,0.0001423]
[1738144567523,1.14254948,102460.0,102450.0,1e-08]
[1738144568474,0.82414948,102460.0,102450.0,1e-08]
[1738144568678,0.82414948,102460.0,102450.0,0.00100001]
[1738144568679,0.82914948,102460.0,102450.0,0.00100001]
[1738144568906,0.84914948,102460.0,102450.0,0.00100001]
[1738144569291,0.79149896,102460.0,102450.0,0.00100001]
[1738144569630,0.79249896,102460.0,102450.0,0.00100001]
[1738144570465,0.85014948,102460.0,102450.0,0.00100001]
[1738144570938,0.85014948,102460.0,102450.0,0.00146783]
[1738144572694,0.85990281,102460.0,102450.0,0.00146783]
[1738144573326,0.87921419,102460.0,102450.0,0.00146783]
[1738144573905,1.20761419,102460.0,102450.0,0.00146783]
[1738144575044,1.20761419,102460.0,102450.0,0.00755465]
[1738144575875,1.19761419,102460.0,102450.0,0.00755465]
[1738144576221,1.14996367,102460.0,102450.0,0.00755465]
[1738144577264,1.20761419,102460.0,102450.0,0.00755465]
[1738144579932,0.87921419,102460.0,102450.0,0.00755465]
[1738144582943,0.86921419,102460.0,102450.0,0.00755465]
[1738144583144,0.71420691,102460.0,102450.0,0.00755465]
[1738144583354,0.56700691,102460.0,102450.0,0.00755465]
[1738144583770,0.58700691,102460.0,102450.0,0.00755465]
[1738144584417,0.56700691,102460.0,102450.0,0.00755465]
[1738144584617,0.58700691,102460.0,102450.0,0.00755465]
[1738144584835,0.69436367,102460.0,102450.0,0.00755465]
[1738144585038,0.77076367,102460.0,102450.0,0.00755465]
[1738144585249,0.64040691,102460.0,102450.0,0.00755465]
[1738144585744,0.66240691,102460.0,102450.0,0.00755465]
[1738144585935,0.66440691,102460.0,102450.0,0.00755465]
[1738144586488,0.65940691,102460.0,102450.0,0.00655465]
[1738144586786,0.66740691,102460.0,102450.0,0.00655465]
[1738144586947,0.7650625,102460.0,102450.0,0.00655465]
[1738144588626,0.82271302,102460.0,102450.0,0.00655465]
[1738144590392,0.7650625,102460.0,102450.0,0.00655465]
[1738144591180,0.82271302,102460.0,102450.0,0.00655465]
[1738144591595,0.88131302,102460.0,102450.0,0.00655465]
[1738144592489,0.88131302,102460.0,102450.0,6.5e-07]
[1738144592819,0.88131302,102460.0,102450.0,5e-08]
[1738144593025,0.169412,102450.0,102440.0,2.953e-05]
[1738144593233,0.62931296,102450.0,102440.0,2.953e-05]
[1738144594757,0.84596348,102450.0,102440.0,2.953e-05]
[1738144594966,0.63031296,102450.0,102440.0,2.953e-05]
[1738144595181,0.63539792,102450.0,102440.0,2.953e-05]
[1738144595417,0.53804116,102450.0,102440.0,2.953e-05]
[1738144595593,0.53704116,102450.0,102440.0,2.953e-05]
[1738144595807,0.54104116,102450.0,102440.0,2.953e-05]
[1738144596009,0.54004116,102450.0,102440.0,2.953e-05]
[1738144596203,0.54904116,102450.0,102440.0,2.953e-05]
[1738144596359,0.64639792,102450.0,102440.0,2.953e-05]
[1738144597901,0.56904116,102450.0,102440.0,2.953e-05]
[1738144598689,0.57904116,102450.0,102440.0,2.953e-05]
[1738144599718,0.55904116,102450.0,102440.0,2.953e-05]
[1738144599928,0.57904116,102450.0,102440.0,2.953e-05]
[1738144600338,0.56904116,102450.0,102440.0,2.953e-05]
[1738144600539,0.66639792,102450.0,102440.0,2.953e-05]
[1738144603504,0.66639792,102450.0,102440.0,2.953e-05]
[1738144604145,0.64639792,102450.0,102440.0,2.953e-05]
[1738144604396,0.66639792,102450.0,102440.0,2.953e-05]
[1738144608649,0.169427,102440.0,102430.0,0.07077183]
[1738144608863,0.3819712,102440.0,102430.0,0.07077183]
[1738144609663,0.7103712,102440.0,102430.0,0.07077183]
[1738144609881,0.7173712,102440.0,102430.0,0.07077183]
[1738144610259,0.65972068,102440.0,102430.0,0.07077183]
[1738144610478,0.7193712,102440.0,102430.0,0.07077183]
[1738144612063,0.146441,102430.0,102420.0,0.1257]
[1738144612182,0.30133468,102430.0,102420.0,0.1257]
[1738144613307,0.30533468,102430.0,102420.0,0.1261842]
[1738144613548,0.30633468,102430.0,102420.0,0.1261842]
[1738144614717,0.39375564,102430.0,102420.0,0.1261842]
[1738144616675,0.40349849,102430.0,102420.0,0.1261842]
[1738144622111,0.40349849,102430.0,102420.0,0.1263265]
[1738144622750,0.40349849,102430.0,102420.0,0.0476265]
[1738144623709,0.31607753,102430.0,102420.0,0.0476265]
[1738144634728,0.31637636,102430.0,102420.0,0.0476265]
[1738144641144,0.31637636,102430.0,102420.0,0.0006265]
[1738144644477,0.25872584,102430.0,102420.0,0.0822265]
[1738144644680,0.31637636,102430.0,102420.0,0.0822265]
[1738144648770,0.30663351,102430.0,102420.0,0.0822265]
[1738144650713,0.30663351,102430.0,102420.0,0.0006265]
[1738144659885,0.24898299,102430.0,102420.0,0.0825265]
[1738144661834,0.30663351,102430.0,102420.0,0.0825265]
[1738144669812,0.30663351,102430.0,102420.0,0.0006265]
[1738144678729,1.12144079,102430.0,102420.0,0.0006265]
[1738144678955,1.17909131,102430.0,102420.0,0.0006265]
[1738144679142,1.12651506,102430.0,102420.0,0.0006265]
[1738144679818,1.12251506,102430.0,102420.0,0.0006265]
[1738144680015,1.12151506,102430.0,102420.0,0.0006265]
[1738144680190,1.12551506,102430.0,102420.0,0.0006265]
[1738144680873,1.12151506,102430.0,102420.0,0.0006265]
[1738144681046,1.12451506,102430.0,102420.0,0.0006265]
[1738144681286,1.19116558,102430.0,102420.0,5e-07]
[1738144681503,1.18216558,102430.0,102420.0,5e-07]
[1738144681734,1.17216558,102430.0,102420.0,5e-07]
[1738144681947,1.18116558,102430.0,102420.0,5e-07]
[1738144682147,1.16116558,102430.0,102420.0,5e-07]
[1738144682809,0.94450656,102420.0,102410.0,3e-07]
[1738144683021,0.65157,102410.0,102400.0,2.2e-07]
[1738144683230,0.91176472,102410.0,102400.0,2.2e-07]
[1738144683463,0.36789904,102390.0,102380.0,0.0011423]
[1738144683667,0.5148422,102390.0,102380.0,0.0011423]
[1738144684313,1.17824948,102390.0,102380.0,3e-07]
[1738144684549,0.146527,102370.0,102360.0,0.0376423]
[1738144684758,0.30142068,102370.0,102360.0,0.0376423]
[1738144684965,0.20417752,102370.0,102360.0,0.0376423]
[1738144685209,0.146527,102370.0,102360.0,0.1194423]
[1738144685441,0.1553937,102370.0,102360.0,0.1194423]
[1738144685649,0.146527,102370.0,102360.0,0.1194423]
[1738144685911,0.21304422,102370.0,102360.0,0.1194423]
[1738144686117,0.20417752,102370.0,102360.0,0.1194423]
[1738144687352,0.20417752,102370.0,102360.0,0.1204423]
[1738144687579,0.20517752,102370.0,102360.0,0.1204423]
[1738144696721,0.20275026,102370.0,102360.0,0.1204423]
[1738144698290,0.20275026,102370.0,102360.0,0.1004423]
[1738144700203,0.29999342,102370.0,102360.0,0.0186423]
[1738144704644,0.29999342,102370.0,102360.0,0.0187847]
[1738144705002,0.30029246,102370.0,102360.0,0.0187847]
[1738144706700,0.14539878,102370.0,102360.0,0.0187847]
[1738144706940,0.15426548,102370.0,102360.0,0.2470257]
[1738144707151,0.14539878,102370.0,102360.0,0.2470257]
[1738144707357,0.15426548,102370.0,102360.0,0.2470257]
[1738144707561,0.14539878,102370.0,102360.0,0.2470257]
[1738144707738,0.2030493,102370.0,102360.0,0.2470257]
[1738144708501,0.211916,102370.0,102360.0,0.2470257]
[1738144710216,0.02046457,102370.0,102360.0,0.2470257]
[1738144710421,0.02046457,102370.0,102360.0,0.2931257]
[1738144711753,0.01016574,102370.0,102360.0,0.2931257]
[1738144712131,0.02046457,102370.0,102360.0,0.2931257]
[1738144712349,0.00129904,102370.0,102360.0,0.4431257]
[1738144712822,0.00129904,102370.0,102360.0,0.50077622]
[1738144713180,0.00129904,102370.0,102360.0,0.47356542]
[1738144713384,0.00029904,102370.0,102360.0,0.47356542]
[1738144713787,0.00029904,102370.0,102360.0,0.6274591]
[1738144714035,0.00029904,102370.0,102360.0,0.56980858]
[1738144714421,0.00029904,102370.0,102360.0,0.57080858]
[1738144714724,0.00029904,102370.0,102360.0,0.57084858]
[1738144714921,0.00029904,102370.0,102360.0,0.63715966]
[1738144715083,0.00029904,102370.0,102360.0,0.69681018]
[1738144715715,0.00029904,102370.0,102360.0,0.63915966]
[1738144715914,0.00029904,102370.0,102360.0,0.69681018]
[1738144716953,0.00029904,102370.0,102360.0,0.69481018]
[1738144717158,0.00029904,102370.0,102360.0,0.69781018]
[1738144717380,0.00129904,102370.0,102360.0,0.69781018]
[1738144717751,0.00129904,102370.0,102360.0,0.68016788]
[1738144725409,0.00129904,102370.0,102360.0,1.53606788]
[1738144726461,0.00129904,102370.0,102360.0,1.47841736]
[1738144727362,0.00129904,102370.0,102360.0,1.53606788]
[1738144727572,0.00129904,102370.0,102360.0,1.47841736]
[1738144728786,0.00129904,102370.0,102360.0,1.53606788]
[1738144729697,0.00129904,102370.0,102360.0,1.44797764]
[1738144730046,0.00129904,102370.0,102360.0,1.50562816]
[1738144730294,0.00129904,102370.0,102360.0,1.44797764]
[1738144731426,0.00129904,102370.0,102360.0,0.59207764]
[1738144732682,0.00129904,102370.0,102360.0,0.64972816]
[1738144732882,0.00129904,102370.0,102360.0,0.68853545]
[1738144744439,0.00129904,102370.0,102360.0,0.6950568]
[1738144746229,0.00129904,102370.0,102360.0,0.6866568]
[1738144746438,0.00129904,102370.0,102360.0,0.63740628]
[1738144746635,0.00129904,102370.0,102360.0,0.6950568]
[1738144750331,0.00129904,102370.0,102360.0,0.63740628]
[1738144750922,0.00129904,102370.0,102360.0,0.62900628]
[1738144751131,0.00129904,102370.0,102360.0,0.55570628]
[1738144752802,0.00129904,102370.0,102360.0,0.6133568]
[1738144753162,0.00129904,102370.0,102360.0,0.55570628]
[1738144754346,0.00129904,102370.0,102360.0,0.6133568]
[1738144754768,0.00129904,102370.0,102360.0,0.55570628]
[1738144754943,0.00129904,102370.0,102360.0,0.63180628]
[1738144755211,0.00129904,102370.0,102360.0,0.62969495]
[1738144756984,0.00092994,102370.0,102360.0,0.62969495]
[1738144759192,0.00092994,102370.0,102360.0,0.50749495]
[1738144762590,0.00122898,102370.0,102360.0,0.50749495]
[1738144765271,0.00122898,102370.0,102360.0,0.49082828]
[1738144766836,0.00050495,102370.0,102360.0,0.49082828]
[1738144772172,0.00050495,102370.0,102360.0,0.43325776]
[1738144772509,0.00050495,102370.0,102360.0,0.49090828]
[1738144774332,0.00050495,102370.0,102360.0,0.49105068]
[1738144777876,0.00050495,102370.0,102360.0,0.48257068]
[1738144778141,0.09007165,102370.0,102360.0,0.327677]
[1738144778683,0.09007165,102370.0,102360.0,0.38532752]
[1738144780120,0.12589165,102370.0,102360.0,0.38532752]
[1738144782553,0.12589165,102370.0,102360.0,0.327677]
[1738144784400,0.12589165,102370.0,102360.0,0.38532752]
[1738144787711,0.03632495,102370.0,102360.0,0.38532752]
[1738144788124,0.04519165,102370.0,102360.0,0.38532752]
[1738144788874,0.03632495,102370.0,102360.0,0.38532752]
[1738144789478,0.04519165,102370.0,102360.0,0.38532752]
[1738144791107,0.03801637,102370.0,102360.0,0.38532752]
[1738144793351,0.02914967,102370.0,102360.0,0.38532752]
[1738144793572,0.02914967,102370.0,102360.0,0.48257068]
[1738144798671,0.02944871,102370.0,102360.0,0.48257068]
[1738144799559,0.02944871,102370.0,102360.0,0.42492016]
[1738144800278,0.02944871,102370.0,102360.0,0.48257068]
[1738144801353,0.02944871,102370.0,102360.0,0.5402212]
[1738144801564,0.02944871,102370.0,102360.0,0.6206212]
[1738144802928,0.02944871,102370.0,102360.0,0.6666212]
[1738144804586,0.03044871,102370.0,102360.0,0.6716212]
[1738144804786,0.03044871,102370.0,102360.0,0.6686212]
[1738144804984,0.03044871,102370.0,102360.0,0.6697545]
[1738144805187,0.03044871,102370.0,102360.0,0.6737545]
[1738144805637,0.03044871,102370.0,102360.0,1.5296545]
[1738144806467,0.03044871,102370.0,102360.0,1.54928313]
[1738144808762,0.33998518,102410.0,102390.0,0.195329]
[1738144808979,0.25295152,102410.0,102390.0,1.17830653]
[1738144809171,0.59473652,102410.0,102390.0,1.52011653]
[1738144809377,0.59473652,102410.0,102390.0,1.52010953]
[1738144809864,0.59473652,102410.0,102390.0,1.71543153]
[1738144810083,0.59668355,102410.0,102390.0,1.71543153]
[1738144810284,0.60168355,102410.0,102390.0,2.20483153]
[1738144810646,0.60168355,102410.0,102390.0,2.00950953]
[1738144811663,0.60168355,102410.0,102390.0,2.00843786]
[1738144811878,0.1246,102400.0,102390.0,1.86253819]
[1738144812123,0.1246,102400.0,102390.0,1.86146639]
[1738144812760,0.1246,102400.0,102390.0,1.8603945]
[1738144812965,0.32873452,102400.0,102390.0,0.87790031]
[1738144813174,0.32873452,102400.0,102390.0,0.87690031]
[1738144813373,0.32873452,102400.0,102390.0,0.87790031]
[1738144813918,0.32873452,102400.0,102390.0,0.87990031]
[1738144814122,0.32873452,102400.0,102390.0,0.87790031]
[1738144814549,0.3306457,102400.0,102390.0,0.87790031]
[1738144814764,0.3306457,102400.0,102390.0,0.4884]
[1738144815173,0.27299518,102400.0,102390.0,0.4884]
[1738144815808,0.32183518,102400.0,102390.0,0.4884]
[1738144817817,0.32183518,102400.0,102390.0,0.63968615]
[1738144819842,0.197324,102400.0,102390.0,0.63968615]
[1738144820223,0.05084,102400.0,102390.0,0.63968615]
[1738144820424,0.04884,102400.0,102390.0,0.63968615]
[1738144820635,0.04884,102400.0,102390.0,0.64168615]
[1738144820636,0.195324,102400.0,102390.0,0.64168615]
[1738144821071,0.195324,102400.0,102390.0,0.49518815]
[1738144821287,0.33247452,102400.0,102390.0,0.49518815]
[1738144821500,0.38087452,102400.0,102390.0,0.49518815]
[1738144821681,0.38087452,102400.0,102390.0,0.49618815]
[1738144822435,0.38087452,102400.0,102390.0,0.49533045]
[1738144822676,0.5357682,102400.0,102390.0,0.49533045]
[1738144822880,0.53606703,102400.0,102390.0,0.49533045]
[1738144823513,0.53606703,102400.0,102390.0,0.49333045]
[1738144823708,0.5527337,102400.0,102390.0,0.49333045]
[1738144824299,0.5547337,102400.0,102390.0,0.49333045]
[1738144824477,0.5527337,102400.0,102390.0,0.49333045]
[1738144825753,0.5547337,102400.0,102390.0,0.49333045]
[1738144826442,0.5777337,102400.0,102390.0,0.49333045]
[1738144826632,0.58738251,102400.0,102390.0,0.49333045]
[1738144827225,1.12343303,102400.0,102390.0,0.49333045]
[1738144827438,1.06578251,102400.0,102390.0,0.49333045]
[1738144827848,1.15281617,102400.0,102390.0,0.49333045]
[1738144828605,1.15581617,102400.0,102390.0,0.49333045]
[1738144828804,1.1738182,102400.0,102390.0,0.49333045]
[1738144829109,1.1798182,102400.0,102390.0,0.49333045]
[1738144829333,1.21156739,102400.0,102390.0,0.49333045]
[1738144829527,1.1738182,102400.0,102390.0,0.49333045]
[1738144829731,1.1818182,102400.0,102390.0,0.49333045]
[1738144829938,1.1788182,102400.0,102390.0,0.49333045]
[1738144831422,1.1808182,102400.0,102390.0,0.49333045]
[1738144831641,1.09378454,102400.0,102390.0,0.49333045]
[1738144831784,1.10374454,102400.0,102390.0,0.49333045]
[1738144831984,1.19680317,102400.0,102390.0,0.49333045]
[1738144834296,1.10374454,102400.0,102390.0,0.49333045]
[1738144834730,1.10374454,102400.0,102390.0,0.49337045]
[1738144838348,1.16139506,102400.0,102390.0,0.49337045]
[1738144839486,1.17647315,102400.0,102390.0,0.49337045]
[1738144841139,1.17647315,102400.0,102390.0,0.47383745]
[1738144841348,1.27382991,102400.0,102390.0,0.45430445]
[1738144841568,1.27382991,102400.0,102390.0,0.43477145]
[1738144843214,1.27382991,102400.0,102390.0,0.00497045]
[1738144844360,0.94542991,102400.0,102390.0,0.00497045]